bitfinex/quotes_BTCUSD_20241128
["timestamp","ask_amount","ask_price","bid_price","bid_amount"]
[1732774275305,0.25954929,95229.0,95228.0,0.0017184]
[1732774276850,0.25854929,95229.0,95228.0,0.0017184]
[1732774277074,0.25954929,95229.0,95228.0,0.0017184]
[1732774277294,0.25854929,95229.0,95228.0,0.0017184]
[1732774277715,0.25954929,95229.0,95228.0,0.0017184]
[1732774277933,0.25854929,95229.0,95228.0,0.0017184]
[1732774278355,0.25954929,95229.0,95228.0,0.0017184]
[1732774278560,0.25854929,95229.0,95228.0,0.0017184]
[1732774280131,0.25954929,95229.0,95228.0,0.0017184]
[1732774280788,0.25354929,95229.0,95228.0,0.0017184]
[1732774290537,0.25324423,95229.0,95228.0,0.0017184]
[1732774291025,0.48698944,95229.0,95228.0,0.0017184]
[1732774295795,0.48098944,95229.0,95228.0,0.0017184]
[1732774296315,0.47998944,95229.0,95228.0,0.0017184]
[1732774296555,0.48098944,95229.0,95228.0,0.0017184]
[1732774298402,0.47998944,95229.0,95228.0,0.0017184]
[1732774298646,0.24624423,95229.0,95228.0,0.0017184]
[1732774299997,0.24724423,95229.0,95228.0,0.0017184]
[1732774301790,0.24810363,95229.0,95228.0,0.0017184]
[1732774302233,0.09810363,95229.0,95228.0,0.0017184]
[1732774302456,0.00539869,95229.0,95228.0,0.1261184]
[1732774302701,0.11040869,95229.0,95228.0,0.1261184]
[1732774303363,0.10940869,95229.0,95228.0,0.1261184]
[1732774303588,0.11040869,95229.0,95228.0,0.1261184]
[1732774303839,0.1068694,95229.0,95228.0,0.1261184]
[1732774304063,0.1058694,95229.0,95228.0,0.2203482]
[1732774304257,0.1058694,95229.0,95228.0,0.2223482]
[1732774304503,0.10906939,95229.0,95228.0,0.1261184]
[1732774304935,0.10906939,95229.0,95228.0,0.1291184]
[1732774304936,0.1058694,95229.0,95228.0,0.1291184]
[1732774305381,0.1058694,95229.0,95226.0,0.14138002]
[1732774305382,0.210025,95227.0,95226.0,0.09424594]
[1732774305606,0.315037,95227.0,95226.0,0.09424594]
[1732774305833,0.31823671,95227.0,95226.0,0.09424594]
[1732774306066,0.31823671,95227.0,95223.0,0.09424594]
[1732774306067,0.21322471,95227.0,95223.0,0.09424594]
[1732774306297,0.105014,95225.0,95224.0,0.023]
[1732774306944,0.10821344,95225.0,95224.0,0.023]
[1732774307379,0.00319944,95225.0,95224.0,0.023]
[1732774307582,0.105014,95225.0,95224.0,0.11724594]
[1732774307812,0.10821344,95225.0,95224.0,0.11724594]
[1732774308030,0.10821344,95225.0,95224.0,0.12324594]
[1732774308245,0.10821344,95225.0,95224.0,0.12724594]
[1732774308471,0.00319944,95225.0,95224.0,0.20444594]
[1732774308952,0.0008594,95229.0,95224.0,0.1102]
[1732774309181,0.0008594,95229.0,95228.0,0.128011]
[1732774309393,0.0008594,95229.0,95228.0,0.32511578]
[1732774309625,0.0008594,95229.0,95228.0,0.30805621]
[1732774310507,0.0008594,95229.0,95228.0,0.31105621]
[1732774310732,0.1007178,95239.0,95229.0,0.023]
[1732774310963,0.1007178,95239.0,95233.0,0.023]
[1732774311173,0.104996,95241.0,95233.0,0.128004]
[1732774311385,0.209979,95248.0,95233.0,0.128004]
[1732774311386,0.104998,95240.0,95233.0,0.128005]
[1732774311663,0.104997,95241.0,95233.0,0.128005]
[1732774311888,0.104998,95240.0,95233.0,0.128005]
[1732774312318,0.104998,95240.0,95233.0,0.130005]
[1732774312541,0.105,95238.0,95233.0,0.025]
[1732774312998,0.209991,95242.0,95233.0,0.027]
[1732774313181,0.209991,95242.0,95233.0,0.025]
[1732774313389,0.209979,95248.0,95234.0,0.10284521]
[1732774313610,0.104991,95246.0,95240.0,0.023]
[1732774313820,0.104992,95245.0,95241.0,0.0772]
[1732774314067,0.209965,95254.0,95242.0,0.127995]
[1732774314283,0.104988,95249.0,95242.0,0.127995]
[1732774314500,0.209949,95261.0,95242.0,0.127995]
[1732774314501,0.209956,95258.0,95242.0,0.023]
[1732774314714,0.10499,95247.0,95242.0,0.023]
[1732774314971,0.001,95248.0,95242.0,0.023]
[1732774315170,0.10499,95247.0,95242.0,0.023]
[1732774315430,0.001,95249.0,95242.0,0.11725726]
[1732774315657,0.104991,95246.0,95242.0,0.11725726]
[1732774315875,0.104994,95243.0,95242.0,0.11725726]
[1732774316088,0.001,95246.0,95242.0,0.023]
[1732774316298,0.10820656,95243.0,95242.0,0.023]
[1732774316508,0.10820656,95243.0,95242.0,0.027]
[1732774316509,0.104994,95243.0,95242.0,0.027]
[1732774316723,0.10820656,95243.0,95242.0,0.023]
[1732774316933,0.104996,95241.0,95240.0,0.023]
[1732774317135,0.21320256,95243.0,95240.0,0.023]
[1732774317136,0.00321256,95243.0,95240.0,0.023]
[1732774317352,0.209983,95246.0,95239.0,0.023]
[1732774317353,0.104995,95242.0,95239.0,0.023]
[1732774318257,0.104996,95241.0,95240.0,0.025]
[1732774318685,0.105002,95236.0,95235.0,0.09417635]
[1732774318890,0.105002,95236.0,95235.0,0.11717635]
[1732774319125,0.105002,95236.0,95235.0,0.023]
[1732774319126,0.10823756,95236.0,95235.0,0.023]
[1732774319366,0.105002,95236.0,95235.0,0.023]
[1732774319584,0.10823688,95236.0,95235.0,0.023]
[1732774320489,0.00323488,95236.0,95235.0,0.023]
[1732774320700,0.00323488,95236.0,95235.0,0.026]
[1732774320906,0.20999,95243.0,95235.0,0.031]
[1732774320907,0.104999,95239.0,95235.0,0.031]
[1732774321113,0.104999,95239.0,95235.0,0.028]
[1732774321527,0.00323377,95238.0,95235.0,0.031]
[1732774322013,0.00323377,95238.0,95235.0,0.028]
[1732774322223,0.00323377,95238.0,95235.0,0.03]
[1732774322426,0.00323377,95238.0,95235.0,0.025]
[1732774322643,0.10823377,95238.0,95235.0,0.025]
[1732774322857,0.10823377,95238.0,95235.0,0.03]
[1732774323075,0.10823377,95238.0,95235.0,0.025]
[1732774323511,0.00323377,95238.0,95235.0,0.03]
[1732774323728,0.00323377,95238.0,95235.0,0.028]
[1732774323932,0.104998,95240.0,95235.0,0.028]
[1732774324173,0.00323364,95237.0,95235.0,0.031]
[1732774324376,0.20999,95243.0,95235.0,0.031]
[1732774324587,0.257874,95250.0,95235.0,0.031]
[1732774324588,0.105002,95236.0,95235.0,0.031]
[1732774324797,0.105002,95236.0,95235.0,0.028]
[1732774325023,0.10823785,95236.0,95235.0,0.028]
[1732774325238,0.10823785,95236.0,95235.0,0.03]
[1732774325493,0.10823785,95236.0,95235.0,0.025]
[1732774325749,0.10823785,95236.0,95233.0,0.01958417]
[1732774325750,0.105003,95235.0,95234.0,0.023]
[1732774326141,0.105006,95233.0,95230.0,0.023]
[1732774326358,0.105007,95231.0,95229.0,0.023]
[1732774326810,0.00310947,95232.0,95229.0,0.023]
[1732774326811,0.00310919,95230.0,95229.0,0.023]
[1732774327053,0.105006,95232.0,95229.0,0.023]
[1732774327270,0.10811621,95230.0,95229.0,0.04151097]
[1732774327488,0.105008,95230.0,95229.0,0.04151097]
[1732774327695,0.00310821,95230.0,95229.0,0.04151097]
[1732774327899,0.00310821,95230.0,95229.0,0.04451097]
[1732774328135,0.105008,95231.0,95229.0,0.04451097]
[1732774328359,0.00310821,95230.0,95229.0,0.04151097]
[1732774328578,0.00310821,95230.0,95229.0,0.04751097]
[1732774328808,0.210011,95233.0,95229.0,0.05151097]
[1732774329022,0.00310821,95230.0,95229.0,0.04551097]
[1732774329235,0.105006,95232.0,95229.0,0.05151097]
[1732774329480,0.210002,95237.0,95229.0,0.05151097]
[1732774329481,0.00310821,95230.0,95229.0,0.05151097]
[1732774329680,0.105008,95231.0,95229.0,0.05151097]
[1732774329902,0.00310821,95230.0,95229.0,0.05151097]
[1732774330105,0.00310821,95230.0,95229.0,0.04751097]
[1732774330312,0.00310821,95230.0,95229.0,0.05051097]
[1732774330527,0.00310821,95230.0,95229.0,0.009]
[1732774330528,0.10811621,95230.0,95229.0,0.009]
[1732774330810,0.23721621,95230.0,95229.0,0.009]
[1732774331077,0.23721621,95230.0,95229.0,0.006]
[1732774331268,0.23721621,95230.0,95229.0,0.01]
[1732774331680,0.23721621,95230.0,95229.0,0.006]
[1732774332106,0.13320821,95230.0,95222.0,0.0017188]
[1732774332326,0.105016,95223.0,95222.0,0.0017188]
[1732774332960,0.10812097,95223.0,95222.0,0.0017188]
[1732774333867,0.00310497,95223.0,95222.0,0.0017188]
[1732774334074,0.00310497,95223.0,95222.0,0.1307358]
[1732774334299,0.106009,95230.0,95223.0,0.023]
[1732774334515,0.31503,95229.0,95223.0,0.023]
[1732774334754,0.105012,95227.0,95223.0,0.023]
[1732774335195,0.105013,95226.0,95223.0,0.023]
[1732774335411,0.10810936,95226.0,95223.0,0.023]
[1732774335631,0.00309636,95226.0,95223.0,0.023]
[1732774335856,0.00309636,95226.0,95223.0,0.131016]
[1732774336111,0.105015,95224.0,95223.0,0.03]
[1732774336321,0.105015,95224.0,95223.0,0.026]
[1732774336540,0.10811108,95224.0,95223.0,0.026]
[1732774336757,0.10811108,95224.0,95223.0,0.032]
[1732774336966,0.10811108,95224.0,95223.0,0.023]
[1732774337415,0.10811108,95224.0,95223.0,0.031]
[1732774337673,0.00309608,95224.0,95223.0,0.027]
[1732774337885,0.00309608,95224.0,95223.0,0.023]
[1732774338104,0.00309608,95224.0,95223.0,0.024]
[1732774338322,0.105015,95225.0,95223.0,0.024]
[1732774338526,0.00309608,95224.0,95223.0,0.024]
[1732774338747,0.10811108,95224.0,95223.0,0.023]
[1732774338995,0.10811108,95224.0,95223.0,0.0257186]
[1732774339438,0.00309608,95224.0,95223.0,0.0277186]
[1732774339876,0.00309608,95224.0,95223.0,0.0027186]
[1732774339877,0.105015,95224.0,95223.0,0.0027186]
[1732774340089,0.10811108,95224.0,95223.0,0.0027186]
[1732774340314,0.10811108,95224.0,95223.0,0.0017186]
[1732774340544,0.10811108,95224.0,95223.0,0.0027186]
[1732774340781,0.10211108,95224.0,95223.0,0.0067186]
[1732774341003,0.10211108,95224.0,95223.0,0.0017186]
[1732774341349,0.10211108,95224.0,95223.0,0.0027186]
[1732774341444,0.10211108,95224.0,95223.0,0.0037186]
[1732774341671,0.10211108,95224.0,95223.0,0.0027186]
[1732774342111,0.10211108,95224.0,95223.0,0.0037186]
[1732774342548,0.25211108,95224.0,95223.0,0.0027186]
[1732774342993,0.25211108,95224.0,95223.0,0.0037186]
[1732774343428,0.25211108,95224.0,95223.0,0.0017186]
[1732774343857,0.25211108,95224.0,95223.0,0.0037186]
[1732774344320,0.25211108,95224.0,95223.0,0.0027186]
[1732774344544,0.25211108,95224.0,95223.0,0.0037186]
[1732774346567,0.10211108,95224.0,95223.0,0.0037186]
[1732774353350,0.00309608,95224.0,95223.0,0.0037186]
[1732774353567,0.210018,95230.0,95223.0,0.0267186]
[1732774353568,0.105013,95226.0,95223.0,0.0267186]
[1732774353786,0.00308754,95224.0,95223.0,0.0267186]
[1732774354000,0.105011,95228.0,95223.0,0.0267186]
[1732774354271,0.00308754,95224.0,95223.0,0.0267186]
[1732774354528,0.105011,95228.0,95223.0,0.0257186]
[1732774354768,0.0008593,95239.0,95224.0,0.12584521]
[1732774354988,0.0008593,95239.0,95229.0,0.023]
[1732774354989,0.210002,95237.0,95229.0,0.023]
[1732774355474,0.105004,95234.0,95228.0,0.023]
[1732774355689,0.099004,95234.0,95228.0,0.023]
[1732774355918,0.105007,95232.0,95227.0,0.023]
[1732774356337,0.105005,95234.0,95228.0,0.105011]
[1732774356563,0.105005,95233.0,95227.0,0.128011]
[1732774357087,0.105005,95233.0,95229.0,0.023]
[1732774357337,0.0008593,95239.0,95229.0,0.023]
[1732774357571,0.105008,95230.0,95229.0,0.023]
[1732774357812,0.105008,95230.0,95226.0,0.023]
[1732774358053,0.105011,95228.0,95227.0,0.025]
[1732774359214,0.105011,95228.0,95226.0,0.023]
[1732774359913,0.105011,95228.0,95227.0,0.025]
[1732774360131,0.105011,95228.0,95227.0,0.023]
[1732774360350,0.105011,95228.0,95225.0,0.09417973]
[1732774360351,0.105011,95228.0,95226.0,0.023]
[1732774360636,0.105011,95228.0,95226.0,0.028]
[1732774360830,0.105011,95228.0,95226.0,0.031]
[1732774361043,0.105011,95228.0,95226.0,0.026]
[1732774361262,0.07980633,95224.0,95223.0,0.02011758]
[1732774361701,0.18482133,95224.0,95223.0,0.02011758]
[1732774361961,0.07980633,95224.0,95223.0,0.16140808]
[1732774362200,0.08287671,95224.0,95223.0,0.02011758]
[1732774362447,0.18789171,95224.0,95223.0,0.02011758]
[1732774362677,0.18789171,95224.0,95223.0,0.02411758]
[1732774363126,0.18789171,95224.0,95223.0,0.02011758]
[1732774363344,0.08287671,95224.0,95223.0,0.02011758]
[1732774363562,0.08287671,95224.0,95223.0,0.02411758]
[1732774363800,0.08287671,95224.0,95223.0,0.02711758]
[1732774364031,0.08287671,95224.0,95223.0,0.02011758]
[1732774364239,0.08287671,95224.0,95223.0,0.02311758]
[1732774364474,0.08287671,95224.0,95223.0,0.16940808]
[1732774365333,0.08287671,95224.0,95223.0,0.16947538]
[1732774367570,0.08287671,95224.0,95223.0,0.02811758]
[1732774367802,0.18482133,95224.0,95223.0,0.02811758]
[1732774368042,0.08341988,95224.0,95223.0,0.02811758]
[1732774368948,0.18843488,95224.0,95223.0,0.02811758]
[1732774369186,0.18844379,95224.0,95223.0,0.02811758]
[1732774369901,0.08342879,95224.0,95223.0,0.02811758]
[1732774370793,0.07742879,95224.0,95223.0,0.02811758]
[1732774372460,0.07742879,95224.0,95223.0,0.26380306]
[1732774374305,0.18244379,95224.0,95223.0,0.26380306]
[1732774374740,0.18244379,95224.0,95223.0,0.26390036]
[1732774376324,0.07742879,95224.0,95223.0,0.02811758]
[1732774376779,0.18244379,95224.0,95223.0,0.0097186]
[1732774376987,0.26424379,95224.0,95223.0,0.0097186]
[1732774378322,0.26424379,95224.0,95223.0,0.0067186]
[1732774378526,0.26424379,95224.0,95223.0,0.0087186]
[1732774378700,0.26424379,95224.0,95223.0,0.0037186]
[1732774378913,0.30924379,95224.0,95223.0,0.0037186]
[1732774379110,0.30924379,95224.0,95223.0,0.0047186]
[1732774379320,0.30924379,95224.0,95223.0,0.0037186]
[1732774379721,0.30924379,95224.0,95223.0,0.0077186]
[1732774379924,0.30924379,95224.0,95223.0,0.0017186]
[1732774380372,0.45924379,95224.0,95223.0,0.0017186]
[1732774380953,0.4771401,95224.0,95223.0,0.0017186]
[1732774382715,0.58398531,95224.0,95223.0,0.0017186]
[1732774383121,0.57998531,95224.0,95223.0,0.0017186]
[1732774383729,0.58198531,95224.0,95223.0,0.0027186]
[1732774384554,0.58598531,95224.0,95223.0,0.0027186]
[1732774385002,0.62364511,95224.0,95223.0,0.0027186]
[1732774385206,0.115026,95214.0,95213.0,0.0017178]
[1732774385358,0.115026,95214.0,95191.0,0.0004]
[1732774385359,0.387728,95212.0,95191.0,0.0004]
[1732774385563,0.48400183,95212.0,95191.0,0.0004]
[1732774385770,0.47800183,95212.0,95191.0,0.0004]
[1732774386576,0.49669796,95212.0,95191.0,0.0004]
[1732774386983,0.49869796,95212.0,95211.0,0.0014]
[1732774387408,0.49869796,95212.0,95150.0,0.00014003]
[1732774387409,0.105072,95172.0,95150.0,0.00014003]
[1732774387636,0.105072,95172.0,95148.0,0.55199608]
[1732774387637,0.116872,95172.0,95148.0,0.55199608]
[1732774387852,0.12029015,95172.0,95148.0,0.55199608]
[1732774388316,0.27029015,95172.0,95148.0,0.55199608]
[1732774388946,0.27129015,95172.0,95171.0,0.0064]
[1732774389166,0.27129015,95172.0,95171.0,0.0004]
[1732774389378,0.27129015,95172.0,95171.0,0.0034]
[1732774389607,0.27229015,95172.0,95171.0,0.0094]
[1732774390680,0.26049015,95172.0,95171.0,0.0094]
[1732774399172,0.46049015,95172.0,95171.0,0.0094]
[1732774399514,0.46049015,95172.0,95171.0,0.0111188]
[1732774400547,0.20541815,95172.0,95171.0,0.0111188]
[1732774400763,0.3084162,95172.0,95171.0,0.0111188]
[1732774400968,0.3084162,95172.0,95171.0,0.0081188]
[1732774401399,0.3094162,95172.0,95171.0,0.0081188]
[1732774401976,0.3094162,95172.0,95171.0,0.0021188]
[1732774402157,0.3084162,95172.0,95171.0,0.0021188]
[1732774402418,0.3104162,95172.0,95171.0,0.0031188]
[1732774402899,0.3084162,95172.0,95171.0,0.0031188]
[1732774403339,0.3084162,95172.0,95171.0,0.0061188]
[1732774403581,0.3084162,95172.0,95171.0,0.0051188]
[1732774404041,0.3084162,95172.0,95171.0,0.0061188]
[1732774404717,0.3084162,95172.0,95171.0,0.0051188]
[1732774404966,0.3084162,95172.0,95171.0,0.0061188]
[1732774405434,0.3084162,95172.0,95171.0,0.0051188]
[1732774405872,0.3084162,95172.0,95171.0,0.0021188]
[1732774406092,0.3084162,95172.0,95171.0,0.0061188]
[1732774406760,0.3084162,95172.0,95171.0,0.0071188]
[1732774406969,0.3084162,95172.0,95171.0,0.0031188]
[1732774407184,0.3084162,95172.0,95171.0,0.0071188]
[1732774407436,0.3084162,95172.0,95171.0,0.0061188]
[1732774407652,0.2033442,95172.0,95171.0,0.0071188]
[1732774407869,0.2033442,95172.0,95171.0,0.10996401]
[1732774408144,0.2033442,95172.0,95171.0,0.21503801]
[1732774408566,0.19941815,95172.0,95171.0,0.10996401]
[1732774408790,0.2033442,95172.0,95171.0,0.10896401]
[1732774409010,0.2033442,95172.0,95171.0,0.10496401]
[1732774409452,0.2043442,95172.0,95171.0,0.11096401]
[1732774409685,0.3094162,95172.0,95171.0,0.11096401]
[1732774409873,0.2043442,95172.0,95171.0,0.11096401]
[1732774410129,0.3094162,95172.0,95171.0,0.11396401]
[1732774411022,0.2043442,95172.0,95171.0,0.11396401]
[1732774412348,0.3094162,95172.0,95171.0,0.11396401]
[1732774412555,0.2043442,95172.0,95171.0,0.11396401]
[1732774413429,0.2043442,95172.0,95171.0,0.0111188]
[1732774413430,0.3094162,95172.0,95171.0,0.0111188]
[1732774415719,0.2734162,95172.0,95171.0,0.0111188]
[1732774416374,0.2734162,95172.0,95171.0,0.0021188]
[1732774416375,0.2724162,95172.0,95171.0,0.0021188]
[1732774416798,0.2724162,95172.0,95171.0,0.0031188]
[1732774417231,0.2724162,95172.0,95171.0,0.0021188]
[1732774417450,0.2724162,95172.0,95171.0,0.0061188]
[1732774417910,0.2724162,95172.0,95171.0,0.0051188]
[1732774418410,0.2724162,95172.0,95171.0,0.0061188]
[1732774418874,0.2724162,95172.0,95171.0,0.0031188]
[1732774419350,0.2724162,95172.0,95171.0,0.0061188]
[1732774423311,0.1673442,95172.0,95171.0,0.0061188]
[1732774423723,0.2724162,95172.0,95171.0,0.0061188]
[1732774424167,0.1673442,95172.0,95171.0,0.0061188]
[1732774425311,0.2724162,95172.0,95171.0,0.0061188]
[1732774426439,0.3494162,95172.0,95171.0,0.0061188]
[1732774429116,0.3494162,95172.0,95171.0,0.0031188]
[1732774429587,0.3514162,95172.0,95171.0,0.0021188]
[1732774430022,0.3524162,95172.0,95171.0,0.0021188]
[1732774430477,0.3514162,95172.0,95171.0,0.0021188]
[1732774430698,0.3444162,95172.0,95171.0,0.0021188]
[1732774430951,0.2674162,95172.0,95171.0,0.0021188]
[1732774431388,0.2684162,95172.0,95171.0,0.0021188]
[1732774432517,0.2674162,95172.0,95171.0,0.0021188]
[1732774432742,0.2664162,95172.0,95171.0,0.0021188]
[1732774433661,0.2664162,95172.0,95171.0,0.0031188]
[1732774434323,0.2664162,95172.0,95171.0,0.0051188]
[1732774434765,0.2672755,95172.0,95171.0,0.0051188]
[1732774442613,0.1622035,95172.0,95171.0,0.0051188]
[1732774443483,0.2672755,95172.0,95171.0,0.0051188]
[1732774443707,0.1622035,95172.0,95171.0,0.0051188]
[1732774445575,0.2672755,95172.0,95171.0,0.0051188]
[1732774445814,0.1562035,95172.0,95171.0,0.0051188]
[1732774448674,0.2612755,95172.0,95171.0,0.0051188]
[1732774448901,0.1562035,95172.0,95171.0,0.0051188]
[1732774449602,0.2612755,95172.0,95171.0,0.0051188]
[1732774450785,0.1562035,95172.0,95171.0,0.0051188]
[1732774451725,0.2612755,95172.0,95171.0,0.0051188]
[1732774451951,0.2612755,95172.0,95165.0,0.09446334]
[1732774452662,0.1562035,95172.0,95165.0,0.30462334]
[1732774452900,0.2612765,95172.0,95165.0,0.09446334]
[1732774453577,0.2612765,95172.0,95165.0,0.09646334]
[1732774454275,0.1562035,95172.0,95165.0,0.09746334]
[1732774454496,0.21015,95170.0,95165.0,0.09746334]
[1732774454726,0.105075,95170.0,95165.0,0.09746334]
[1732774454956,0.105077,95168.0,95165.0,0.09746334]
[1732774455184,0.0039368,95169.0,95165.0,0.09746334]
[1732774455410,0.0039364,95167.0,95165.0,0.09746334]
[1732774455655,0.210148,95171.0,95165.0,0.09746334]
[1732774455874,0.15227745,95172.0,95165.0,0.09746334]
[1732774455875,0.0039362,95166.0,95165.0,0.09746334]
[1732774456092,0.15227745,95172.0,95165.0,0.0974813]
[1732774456365,0.15227745,95172.0,95164.0,0.0017176]
[1732774456366,0.0039362,95166.0,95164.0,0.0017176]
[1732774456595,0.0039372,95171.0,95165.0,0.003]
[1732774456826,0.105074,95171.0,95166.0,0.09448842]
[1732774457068,0.105076,95170.0,95166.0,0.09448842]
[1732774457770,0.105074,95171.0,95166.0,0.09448842]
[1732774458460,0.105074,95171.0,95168.0,0.09448842]
[1732774458691,0.15227745,95172.0,95168.0,0.19958099]
[1732774458917,0.15227745,95172.0,95171.0,0.105074]
[1732774459140,0.15227745,95172.0,95171.0,0.3848242]
[1732774459371,0.15227745,95172.0,95171.0,0.29031921]
[1732774460111,0.15227745,95172.0,95171.0,0.52656058]
[1732774460345,0.15227745,95172.0,95171.0,0.29231921]
[1732774460566,0.15227745,95172.0,95171.0,0.29031921]
[1732774460797,0.14627745,95172.0,95171.0,0.29031921]
[1732774461028,0.14627745,95172.0,95171.0,0.33951921]
[1732774461262,0.14627745,95172.0,95171.0,0.33651921]
[1732774461722,0.14727745,95172.0,95171.0,0.34351921]
[1732774461963,0.14727745,95172.0,95171.0,0.34751921]
[1732774462201,0.14727745,95172.0,95171.0,0.21891921]
[1732774462428,0.14727745,95172.0,95171.0,0.21491921]
[1732774462724,0.14727745,95172.0,95171.0,0.21891921]
[1732774464132,0.14627745,95172.0,95171.0,0.21191921]
[1732774464352,0.14727745,95172.0,95171.0,0.21991921]
[1732774464817,0.14627745,95172.0,95171.0,0.22999144]
[1732774465050,0.14727745,95172.0,95171.0,0.23899144]
[1732774467597,0.14727745,95172.0,95171.0,0.23499144]
[1732774467891,0.14627745,95172.0,95171.0,0.23099144]
[1732774468136,0.14727745,95172.0,95171.0,0.23999144]
[1732774469593,0.14315707,95172.0,95171.0,0.23999144]
[1732774470492,0.14315707,95172.0,95171.0,0.47564579]
[1732774472434,0.14315707,95172.0,95171.0,0.23999144]
[1732774475860,0.13715707,95172.0,95171.0,0.23999144]
[1732774477489,0.13715707,95172.0,95171.0,0.42843337]
[1732774479705,0.13715707,95172.0,95171.0,0.23999144]
[1732774480388,0.13715707,95172.0,95171.0,0.47559191]
[1732774480792,0.13715707,95172.0,95171.0,0.47731051]
[1732774481503,0.13715707,95172.0,95171.0,0.24171004]
[1732774482441,0.13715707,95172.0,95171.0,0.47723809]
[1732774483388,0.13715707,95172.0,95171.0,0.24171004]
[1732774485490,0.13715707,95172.0,95171.0,0.47723809]
[1732774485971,0.13715707,95172.0,95171.0,0.24171004]
[1732774486209,0.13715707,95172.0,95171.0,0.47723809]
[1732774486440,0.13715707,95172.0,95171.0,0.47723455]
[1732774488658,0.13715707,95172.0,95171.0,0.24171004]
[1732774490831,0.13115707,95172.0,95171.0,0.24171004]
[1732774494589,0.13115707,95172.0,95171.0,0.37931004]
[1732774495246,0.13115707,95172.0,95171.0,0.53931004]
[1732774495906,0.13115707,95172.0,95171.0,0.93457682]
[1732774496130,0.13115707,95172.0,95171.0,0.53931004]
[1732774496362,0.13115707,95172.0,95171.0,0.82200806]
[1732774496577,0.13115707,95172.0,95171.0,0.53931004]
[1732774497036,0.13115707,95172.0,95171.0,0.82200806]
[1732774497257,0.13115707,95172.0,95171.0,0.53931004]
[1732774499376,0.13115707,95172.0,95171.0,0.95673133]
[1732774501446,0.13115707,95172.0,95171.0,0.93471247]
[1732774501665,0.13115707,95172.0,95171.0,0.53931004]
[1732774502649,0.36192907,95172.0,95171.0,0.0157186]
[1732774502879,0.36192907,95172.0,95171.0,0.09504665]
[1732774503102,0.36531934,95172.0,95171.0,0.0007186]
[1732774504232,0.36731934,95172.0,95171.0,0.0007186]
[1732774504932,0.1233,95170.0,95151.0,0.0004]
[1732774505194,0.228395,95152.0,95151.0,0.0004]
[1732774505424,0.23259822,95152.0,95151.0,0.0004]
[1732774505872,0.37659822,95152.0,95151.0,0.0004]
[1732774506382,0.10458617,95140.0,95132.0,0.002019]
[1732774506841,0.10878071,95140.0,95132.0,0.002019]
[1732774507302,0.23208071,95140.0,95132.0,0.002019]
[1732774509116,0.23708071,95140.0,95132.0,0.002019]
[1732774509344,0.13249454,95140.0,95132.0,0.002019]
[1732774509603,0.13049454,95140.0,95132.0,0.002019]
[1732774509832,0.12749454,95140.0,95132.0,0.002019]
[1732774510065,0.23460254,95140.0,95132.0,0.002019]
[1732774510513,0.23260254,95140.0,95132.0,0.002019]
[1732774511409,0.23460254,95140.0,95132.0,0.002019]
[1732774511599,0.23260254,95140.0,95132.0,0.002019]
[1732774512088,0.23360254,95140.0,95132.0,0.002019]
[1732774512324,0.12949454,95140.0,95132.0,0.002019]
[1732774512555,0.12949454,95140.0,95139.0,0.10456401]
[1732774513036,0.002,95140.0,95139.0,0.20967301]
[1732774513262,0.0768,95152.0,95144.0,0.105103]
[1732774513503,0.0768,95152.0,95145.0,0.10284521]
[1732774513736,0.00471351,95151.0,95145.0,0.10284521]
[1732774514214,0.00471326,95150.0,95145.0,0.10284521]
[1732774514437,0.0465,95155.0,95145.0,0.10284521]
[1732774514672,0.210159,95166.0,95148.0,0.105099]
[1732774514673,0.004713,95149.0,95148.0,0.105099]
[1732774514910,0.0826,95164.0,95153.0,0.105093]
[1732774515150,0.0826,95164.0,95147.0,0.210201]
[1732774515151,0.0826,95164.0,95154.0,0.10284521]
[1732774515383,0.0047166,95163.0,95154.0,0.10284521]
[1732774515841,0.105087,95159.0,95154.0,0.10284521]
[1732774516053,0.1097996,95163.0,95154.0,0.10284521]
[1732774516274,0.00471531,95158.0,95154.0,0.10284521]
[1732774516498,0.187681,95164.0,95154.0,0.10284521]
[1732774516740,0.004,95163.0,95155.0,0.105091]
[1732774516967,0.0087166,95163.0,95156.0,0.10284521]
[1732774517960,0.0047166,95163.0,95156.0,0.10284521]
[1732774518200,0.0047166,95163.0,95158.0,0.210176]
[1732774518456,0.0047166,95163.0,95162.0,0.105083]
[1732774518698,0.0047166,95163.0,95162.0,0.20792821]
[1732774518941,0.105067,95178.0,95162.0,0.10284521]
[1732774519178,0.0799,95179.0,95169.0,0.105075]
[1732774519396,0.0799,95179.0,95163.0,0.10284521]
[1732774519639,0.210138,95176.0,95164.0,0.00185975]
[1732774519864,0.105069,95175.0,95165.0,0.10284521]
[1732774520085,0.00471865,95171.0,95165.0,0.10284521]
[1732774520380,0.00471865,95171.0,95170.0,0.105075]
[1732774520595,0.0479,95182.0,95171.0,0.105074]
[1732774520828,0.0427593,95182.0,95172.0,0.105072]
[1732774521070,0.0799,95191.0,95185.0,0.105058]
[1732774521296,0.0799,95204.0,95185.0,0.20790321]
[1732774521553,0.0799,95204.0,95185.0,0.20976249]
[1732774522277,0.0028592,95186.0,95185.0,0.20976249]
[1732774522526,0.0028592,95186.0,95185.0,0.25102873]
[1732774522746,0.0008592,95186.0,95185.0,0.24916945]
[1732774522976,0.0008592,95186.0,95185.0,0.40316945]
[1732774523189,0.0008592,95186.0,95185.0,0.50636945]
[1732774523664,0.0008592,95186.0,95185.0,0.48810321]
[1732774524326,0.0008592,95186.0,95185.0,0.48510321]
[1732774524554,0.0098592,95186.0,95185.0,0.48510321]
[1732774525028,0.0008592,95186.0,95185.0,0.48410321]
[1732774525249,0.0098592,95186.0,95185.0,0.48510321]
[1732774525547,0.0098592,95186.0,95185.0,0.48610321]
[1732774526245,0.07466573,95224.0,95223.0,0.105016]
[1732774526495,0.07466573,95224.0,95223.0,0.20971981]
[1732774526728,0.08154826,95224.0,95223.0,0.20786121]
[1732774526945,0.07466573,95224.0,95223.0,0.20786121]
[1732774527394,0.07466573,95224.0,95216.0,0.210048]
[1732774527395,0.07466573,95224.0,95204.0,0.0009937]
[1732774527612,0.07466573,95224.0,95211.0,0.210058]
[1732774527613,0.00704535,95223.0,95211.0,0.210058]
[1732774527852,0.00704535,95223.0,95212.0,0.10284521]
[1732774528108,0.07466573,95224.0,95212.0,0.10284521]
[1732774528109,0.07466573,95224.0,95219.0,0.10502]
[1732774528358,0.07466573,95224.0,95198.0,0.023]
[1732774528359,0.0070449,95222.0,95221.0,0.105018]
[1732774528599,0.00704553,95223.0,95222.0,0.105017]